Cogmind - Beta 13 @@@ ROGUE MODE // 2024.04.15 @ 13:09:12 Player: mehbruh Result: Escaped! Performance ------------- Evolutions (9) 4500 Regions Visited (26) 5200 Robots Destroyed (610) 3050 Value Destroyed (29133) 29133 Prototype IDs (77) 1540 Alien Tech Used (1) 200 Bonus (25978) 25978 TOTAL SCORE: 69601 Bonus ------- Triggered High Security 500 High Alert Combat Kills 11686 Follower Combat Kills 1115 Network Hubs Disabled 200 Aligned with FarCom 300 Met Zhirov 300 Met Warlord at Base 500 MAIN.C Attacked Warlord 500 Warlord Defense Kills 788 Built Enhanced Grunts 300 A7 Reached Mainframe 300 Met R17 at Cetus 500 Met R17 at Research 2000 Met Warlord at Research 2000 Invited to Help at Command 2000 Scanned by Researcher 500 Win 3000 Friendly Fire -511 Cogmind --------- Core Integrity 1343/1600 Matter 80/300 Energy 419/440 System Corruption 0% Temperature Cool (15) Movement Treading (158) Location To Epsilon Eridani Parts ------- > --- POWER (2) -------- Quantum Reactor Light Quantum Reactor > --- PROPULSION (6) --- Armored Heavy Treads Biometal Heavy Treads Advanced Heavy Siege Treads > --- UTILITY (11) ----- Advanced Heat Sink Advanced Heat Sink Advanced Heat Sink Advanced Heat Sink Advanced Heat Sink Advanced Heat Sink High-capacity Storage Unit Advanced Signal Interpreter Experimental Target Analyzer Experimental Core Analyzer Advanced Weapon Cycler > --- WEAPON (6) ------- Vortex Rail KE Penetrator KE Penetrator KE Penetrator Advanced Micro-nuke Launcher Advanced Micro-nuke Launcher > --- INVENTORY (20) --- Quantum Reactor Quantum Reactor Quantum Reactor Armored Heavy Treads Armored Heavy Treads Improved Matter Compressor (294) Improved Phase Shifter Advanced System Restoration Module Long-range Tractor Beam Heavy Machine Gun Railgun Helical Railgun Advanced Datajack Vortex Lance (32) Peak State ------------ > --- POWER ------------ Quantum Reactor Light Quantum Reactor > --- PROPULSION ------- Armored Heavy Treads Biometal Heavy Treads Advanced Heavy Siege Treads > --- UTILITY ---------- Advanced Heat Sink Advanced Heat Sink Advanced Heat Sink Advanced Heat Sink Advanced Heat Sink Advanced Heat Sink High-capacity Storage Unit Advanced Signal Interpreter Experimental Target Analyzer Experimental Core Analyzer Advanced Weapon Cycler > --- WEAPON ----------- Vortex Rail KE Penetrator KE Penetrator KE Penetrator Advanced Micro-nuke Launcher Advanced Micro-nuke Launcher > --- INVENTORY -------- Quantum Reactor Quantum Reactor Quantum Reactor Armored Heavy Treads Armored Heavy Treads Improved Matter Compressor Improved Phase Shifter Advanced System Restoration Module Long-range Tractor Beam Heavy Machine Gun Railgun Helical Railgun Advanced Datajack Vortex Lance [Rating: 189] Favorites ----------- Power Heavy Deuterium Engine Engine Heavy Deuterium Engine Power Core Cooled Fission Core Reactor Light Antimatter Reactor Propulsion Centrium Heavy Treads Treads Centrium Heavy Treads Wheel Wheel Utility High-capacity Storage Unit Device Advanced Heat Sink Storage High-capacity Storage Unit Processor Advanced Targeting Computer Protection Centrium Medium Armor Plating Weapon Improved Heavy Machine Gun Energy Gun Heavy Particle Gun Ballistic Gun Improved Heavy Machine Gun Launcher Advanced Micro-nuke Launcher Slashing Weapon Phasing Sabre Piercing Weapon Vortex Lance Build | -11 -10 -10 -9 -9 -9 -8 -8 -7 -6 -6 -6 -6 -6 -5 -5 -5 -5 -4 -4 -4 -4 -4 -3 -3 -2 -1 ------- Run | Yrd Mat Min Mat Min Exi Min Mat Fac Fac Ext Cet Arc Hub Fac Upp Upp Zhi Pro Fac Upp Upp War Pro Res Res Acc Slots Evolved 18 | . . . 2 . . . 2 2 2 . . . . 2 . . . . 2 . . . . 2 2 2 Power 1 | . . . . . . . . . . . . . . . . . . . 1 . . . . . . . Propulsion 4 | . . . 1 . . . . 1 . . . . . . . . . . . . . . . . 2 . Utility 9 | . . . 1 . . . . 1 2 . . . . 1 . . . . 1 . . . . 2 . 1 Weapon 4 | . . . . . . . 2 . . . . . . 1 . . . . . . . . . . . 1 Parts Attached 468 | 7 7 2 31 . . 4 33 43 13 10 7 9 2 30 1 1 10 4 27 8 14 13 . 64 23 105 Power 29 | 1 2 . 3 . . . 1 1 . 1 . . . 1 . . 1 . 1 2 1 1 . 6 2 5 Engine 9 | 1 2 . 3 . . . 1 1 . 1 . . . . . . . . . . . . . . . . Core 3 | . . . . . . . . . . . . . . 1 . . . . 1 1 . . . . . . Reactor 17 | . . . . . . . . . . . . . . . . . 1 . . 1 1 1 . 6 2 5 Propulsion 70 | 2 2 1 12 . . . 11 11 3 5 2 1 . . . . . . 2 . . . . 4 4 10 Treads 69 | 2 2 1 12 . . . 11 11 3 5 2 1 . . . . . . 2 . . . . 4 4 9 Leg . | . . . . . . . . . . . . . . . . . . . . . . . . . . . Wheel 1 | . . . . . . . . . . . . . . . . . . . . . . . . . . 1 Hover . | . . . . . . . . . . . . . . . . . . . . . . . . . . . Flight . | . . . . . . . . . . . . . . . . . . . . . . . . . . . Utility 167 | 2 2 . 4 . . . 4 11 5 4 1 4 1 17 . . 4 3 12 4 5 2 . 25 9 48 Device 115 | 1 . . 3 . . . 1 3 2 1 . 4 1 14 . . 1 2 11 3 5 2 . 17 5 39 Storage 9 | 1 1 . 1 . . . . 1 . . . . . 2 . . 1 . . . . . . 1 . 1 Processor 11 | . 1 . . . . . 1 1 1 . . . . . . . . . . . . . . 3 2 2 Hackware . | . . . . . . . . . . . . . . . . . . . . . . . . . . . Protection 32 | . . . . . . . 2 6 2 3 1 . . 1 . . 2 1 1 1 . . . 4 2 6 Artifact . | . . . . . . . . . . . . . . . . . . . . . . . . . . . Weapon 202 | 2 1 1 12 . . 4 17 20 5 . 4 4 1 12 1 1 5 1 12 2 8 10 . 29 8 42 Energy Gun 25 | . . . 10 . . 3 3 . . . . . . . . . . . . . . 1 . 4 . 4 Energy Cannon . | . . . . . . . . . . . . . . . . . . . . . . . . . . . Ballistic Gun 135 | 2 1 1 2 . . . 11 14 5 . 4 2 1 8 1 1 5 1 9 2 5 7 . 20 5 28 Ballistic Cannon . | . . . . . . . . . . . . . . . . . . . . . . . . . . . Launcher 22 | . . . . . . 1 2 1 . . . . . 1 . . . . . . 2 . . 5 2 8 Special Weapon . | . . . . . . . . . . . . . . . . . . . . . . . . . . . Impact Weapon . | . . . . . . . . . . . . . . . . . . . . . . . . . . . Slashing Weapon 15 | . . . . . . . 1 5 . . . 2 . 3 . . . . 3 . 1 . . . . . Piercing Weapon 5 | . . . . . . . . . . . . . . . . . . . . . . 2 . . 1 2 Special Melee Weapon . | . . . . . . . . . . . . . . . . . . . . . . . . . . . Unidentified Prototypes 29 | . . . 3 . . . 3 2 1 . 3 . . 2 . . 4 . . . . 2 . 5 2 2 Corrupted Parts 2 | . . . . . . . . . . . . 2 . . . . . . . . . . . . . . System Corruption 17 | . . . . . . . . . . . . 17 . . . . . . . . . . . . . . Parts Lost 51 | . . . 1 . . . 2 4 . 3 . . . . . 1 . 1 5 3 3 . . 12 . 16 Power 5 | . . . . . . . . . . 1 . . . . . . . . . 1 1 . . 1 . 1 Propulsion 8 | . . . . . . . 2 2 . 1 . . . . . . . . . . . . . 1 . 2 Utility 19 | . . . 1 . . . . 2 . 1 . . . . . . . . 1 1 1 . . 3 . 9 Weapon 19 | . . . . . . . . . . . . . . . . 1 . 1 4 1 1 . . 7 . 4 Highest Loss Streak 10 | . . . 1 . . . 1 4 . 2 . . . . . 1 . 1 3 3 2 . . 10 . 4 To Critical Strikes 1 | . . . . . . . . . . . . . . . . . . . 1 . . . . . . . Average Slot Usage (%) 92 | . 98 100 99 100 77 81 99 99 100 99 92 84 86 87 88 87 63 87 88 88 88 88 89 89 85 85 Engine 4 | . 14 14 10 11 11 11 8 7 6 6 6 6 6 1 . . . . . . . . . . . . Core 1 | . . . . . . . . . . . . . . 3 5 5 3 . 5 4 . . . . . . Reactor 2 | . . . . . . . . . . . . . . . . . 1 5 5 5 9 10 10 8 8 7 Treads 18 | . 27 28 32 33 33 33 26 29 26 25 19 13 13 11 11 11 11 11 10 10 10 10 10 8 12 11 Device 14 | . 2 . 10 11 11 11 8 7 8 11 13 10 13 16 17 17 14 16 20 21 20 21 21 20 15 19 Storage 6 | . 14 14 11 11 11 11 9 7 6 6 6 6 6 5 5 5 5 5 5 5 5 5 5 6 4 4 Processor 11 | . 11 14 11 11 11 11 9 7 13 13 13 13 13 11 11 11 11 11 10 10 10 10 10 14 19 17 Protection 3 | . . . . . . . . 6 10 6 6 6 6 5 5 5 7 5 5 4 5 5 5 3 2 1 Energy Gun 2 | . . . 18 22 . 3 8 1 . . . . . . . . . . . . . . . . . 1 Ballistic Gun 23 | . 27 28 3 . . . 26 28 26 26 26 21 26 28 29 28 5 28 25 26 25 25 26 21 20 19 Naked Turns . | . . . . . . . . . . . . . . . . . . . . . . . . . . . Heaviest Build 153 | 15 31 31 58 58 52 58 65 75 81 81 76 78 77 85 85 85 90 92 116 116 111 101 100 153 144 134 Greatest Support 220 | 40 40 40 60 60 60 60 68 88 99 120 160 160 160 160 160 160 160 160 160 160 160 160 160 160 220 220 Greatest Overweight (x) 1 | . . . . . . . . . . 1 . . . . . . . . . . . . . 1 . 1 Average Overweight (x) . | . . . . . . . . . . . . . . . . . . . . . . . . . . . Largest Inventory Capacity 20 | 8 15 15 20 20 20 20 20 20 20 20 20 20 20 20 20 20 20 20 20 20 20 20 20 20 20 20 Average Capacity 19 | 7 14 15 19 20 20 20 20 20 20 20 20 20 20 20 20 20 20 20 20 20 20 20 20 20 20 20 Most Carried 20 | 5 15 15 20 20 20 20 20 20 20 20 20 20 20 20 20 20 20 20 20 20 20 20 20 20 20 20 Average Carried 18 | 3 11 14 19 19 19 19 19 19 18 19 19 19 19 19 20 19 19 19 19 19 19 19 20 18 19 18 Final Capacity 20 | 8 15 15 20 20 20 20 20 20 20 20 20 20 20 20 20 20 20 20 20 20 20 20 20 20 20 20 Final Carried 20 | 4 15 15 19 18 20 18 20 20 20 20 20 20 20 20 20 19 20 19 18 20 20 20 20 20 20 16 Class Distribution -------------------- 43% | Scavenger-Gunner 23% | Skirmisher 14% | Mutant 9% | Scavenger-Executioner 3% | Tank Dominant Class ---------------- Mutant | -10/Materials Mutant | -10/Mines Mutant | -9/Materials Mutant | -9/Mines Mutant | -9/Exiles Mutant | -8/Mines Skirmisher | -8/Materials Skirmisher | -7/Factory Tank | -6/Factory Skirmisher | -6/Extension Skirmisher | -6/Cetus Commander-Skirmisher | -6/Archives Scavenger-Skirmisher | -6/Hub_04(d) Scavenger-Gunner | -5/Factory Scavenger-Gunner | -5/Upper Caves Scavenger-Gunner | -5/Upper Caves Mutant | -5/Zhirov Scavenger-Gunner | -4/Proximity Caves Scavenger-Gunner | -4/Factory Scavenger-Gunner | -4/Upper Caves Scavenger-Gunner | -4/Upper Caves Scavenger-Gunner | -4/Warlord Scavenger-Gunner | -3/Proximity Caves Scavenger-Gunner | -3/Research Scavenger-Gunner | -2/Research Scavenger-Executioner | -1/Access Resources | -11 -10 -10 -9 -9 -9 -8 -8 -7 -6 -6 -6 -6 -6 -5 -5 -5 -5 -4 -4 -4 -4 -4 -3 -3 -2 -1 ----------- Run | Yrd Mat Min Mat Min Exi Min Mat Fac Fac Ext Cet Arc Hub Fac Upp Upp Zhi Pro Fac Upp Upp War Pro Res Res Acc Matter Collected 22271 | 304 420 125 523 . . 27 1440 1537 1202 1026 342 117 238 1862 211 181 150 537 2124 297 526 370 560 1667 641 5844 Remotely 5817 | . . . . . . . . . . . . . . 462 . . . 113 554 . 258 120 . 947 116 3247 Salvage Created 32758 | 78 816 163 1811 54 . 32 1961 1962 1907 932 197 305 174 2635 199 129 . 445 2563 601 812 226 796 1925 1160 10875 Parts 1507 | 11 52 2 107 7 . 7 120 120 63 46 8 29 6 128 11 4 . 16 132 26 31 5 32 95 30 419 Haulers Intercepted 29 | . 1 . 5 . . . 6 3 3 . . . . 1 . . . . 1 . . . . 1 5 3 Recyclers Shooed 25 | . 3 . 2 1 . . 1 . 5 6 . . 1 3 . . . . 1 . . . . . . 2 Parts Field Recycled . | . . . . . . . . . . . . . . . . . . . . . . . . . . . Retrieved Matter . | . . . . . . . . . . . . . . . . . . . . . . . . . . . Parts Self-Destructed 114 | . . . . . . . . . . . . . . . 13 4 . 18 . 21 26 . 32 . . . Prevented . | . . . . . . . . . . . . . . . . . . . . . . . . . . . Kills | -11 -10 -10 -9 -9 -9 -8 -8 -7 -6 -6 -6 -6 -6 -5 -5 -5 -5 -4 -4 -4 -4 -4 -3 -3 -2 -1 ------- Run | Yrd Mat Min Mat Min Exi Min Mat Fac Fac Ext Cet Arc Hub Fac Upp Upp Zhi Pro Fac Upp Upp War Pro Res Res Acc Combat Hostiles Destroyed 508 | . 9 4 28 3 . 3 35 26 19 15 3 1 3 43 5 3 . 10 38 8 21 5 12 40 13 161 Guns 407 | . 9 4 25 3 . . 27 26 19 15 3 1 3 39 5 3 . 10 38 8 10 5 12 27 6 109 AOE 98 | . . . 2 . . 3 8 . . . . . . 4 . . . . . . 11 . . 13 7 50 Classes Destroyed 26 | 1 6 1 3 . . . 3 2 1 1 . . . . . . . . 1 . . 1 1 2 . 3 Worker 26 | . . . . . . . 4 5 1 . . . . 1 . . . . 5 . . . . . . 10 Builder 15 | . . . . . . . . 4 . 1 . . . . . . . . 7 . . . . . . 3 Tunneler 10 | 5 . . 1 . . 1 . 1 . . . . . 1 . . . . 1 . . . . . . . Hauler 29 | . 1 . 5 . . . 6 3 3 . . . . 1 . . . . 1 . . . . 1 5 3 Recycler 19 | . 3 . 3 . . . 1 3 4 . . . . . . . . . 2 . . . . . . 3 Carrier 1 | . . . . . . . . . . . . . . . . . . . . . . . . . . 1 Mechanic 7 | . 1 . 1 . . . 1 . . . . . . 1 . . . . . . . . . . . 3 Operator 13 | . 2 . . . . . . . . 1 . 7 . 2 . . . . . . . . . 1 . . Drone 2 | . . . . . . . . . . . . . . . . . . . . . . . 2 . . . Watcher 35 | . 3 . 5 . . . 5 4 . 3 1 . 1 7 . . . . 1 . . . . . . 5 Swarmer 77 | . . . 5 3 . 3 7 4 4 . . . . 1 2 . . 4 4 . 6 . . 14 4 16 Saboteur 6 | . . . . . . . . . . . . . . . . . . . 1 . . . . . . 5 Grunt 203 | . 9 3 13 . . . 17 9 3 5 . . 1 22 . . . 2 10 6 13 3 7 6 4 70 Brawler 19 | . . . . . . . 1 . 1 . . . . 3 . . . . . . . . . . . 14 Duelist 15 | . . . 1 . . . . . . 1 . . . 3 . . . . . . . 1 . 1 . 8 Protector 3 | . . . . . . . . . . . . . . . . . . . . . . . . . . 3 Sentry 56 | . . . 9 . . . 10 8 6 4 . 1 2 2 1 1 . 1 4 . 2 . 1 1 1 2 Demolisher 7 | . . . . . . . . . . . . . . . . . . . . . . . . 6 1 . Hunter 32 | . . . . . . . . . 3 3 . . . 4 . . . . 4 2 . . 2 . 2 12 Programmer 61 | . . . . . . . . 5 2 . . . . 8 2 1 . 2 15 . . . . 2 . 24 Heavy 1 | . . . . . . . 1 . . . . . . . . . . . . . . . . . . . Behemoth 7 | . . . . . . . . . . 2 . . . . . 1 . 1 . . . . . . . 3 Cetus Guard 3 | . . . . . . . . . . . 3 . . . . . . . . . . . . . . . Investigator 1 | . . . . . . . . . . . . . . . . . . . . . . . . . . 1 Striker 13 | . . . . . . . . . . . . . . . . . . . . . . . . 10 1 2 Executioner 3 | . . . . . . . . . . . . . . . . . . . . . . 1 . . . 2 Assembled 1 | . . 1 . . . . . . . . . . . . . . . . . . . . . . . . Best Kill Streak 25 | 4 4 1 5 3 . 4 7 5 4 5 3 2 3 6 3 1 . 5 15 4 15 3 6 25 8 20 Combat Bots Only 25 | . 2 1 5 3 . 3 7 4 4 4 2 1 2 6 3 1 . 5 10 4 15 3 6 25 8 13 Max Kills in Single Turn 6 | 2 1 1 2 1 . 4 4 2 2 1 1 1 1 5 2 1 . 2 5 1 4 1 2 6 4 6 Gunslinging 1 | . . . 1 . . . . 1 . . . . . 1 . . . 1 1 . 1 . 1 1 1 1 Exploded 6 | . . . 1 . . 3 4 . . . . . . 4 . . . . . . 4 . . 6 4 4 Melee . | . . . . . . . . . . . . . . . . . . . . . . . . . . . Uniques/NPCs Destroyed . | . . . . . . . . . . . . . . . . . . . . . . . . . . . Combat | -11 -10 -10 -9 -9 -9 -8 -8 -7 -6 -6 -6 -6 -6 -5 -5 -5 -5 -4 -4 -4 -4 -4 -3 -3 -2 -1 -------- Run | Yrd Mat Min Mat Min Exi Min Mat Fac Fac Ext Cet Arc Hub Fac Upp Upp Zhi Pro Fac Upp Upp War Pro Res Res Acc Hostile Shots Fired 1960 | . 33 32 111 8 . 1 79 278 105 95 17 7 2 103 13 25 . 41 195 57 58 18 56 174 19 433 Missed 570 | . 8 4 27 3 . . 23 85 41 34 7 2 . 32 3 7 . 12 54 21 19 6 12 43 7 120 Damage Taken 25048 | . 324 410 1246 43 . 22 1008 1996 658 1331 205 115 126 1439 202 454 . 628 2212 630 722 293 858 3874 215 6037 Core 1589 | . 26 26 122 . . . 109 129 40 92 43 . . 98 . 63 . 41 108 23 56 52 66 193 45 257 Absorbed by Shields 3091 | . . . . . . . . . . . 81 . . . . . . . 804 31 60 . . 451 84 1580 Reduced by Siege Mode 1261 | . . . . . . . . . . . . . . . . . . . . . . 12 62 250 41 896 Regen/Repaired (Parts) 2758 | . 237 . 252 . . . 133 . . . . . . . . . . . 2014 . . 122 . . . . Core Remaining (%) 82 | 100 . 79 . . . 69 80 81 . . . . 79 . . . . 79 . . . . 73 85 96 83 Volleys Fired 991 | 9 41 25 84 5 . 1 82 77 68 47 17 2 13 80 7 16 . 20 74 11 19 11 28 57 21 176 Largest 6 | 2 2 2 2 2 . 1 4 4 4 4 4 4 4 5 5 5 . 5 5 5 5 5 5 5 5 6 Hottest 236 | 40 40 40 110 110 . 30 133 126 100 70 70 80 60 93 93 93 . 113 171 171 166 150 150 203 161 236 Shots Fired 4185 | 18 82 50 168 10 . 1 322 305 272 188 68 8 52 400 37 75 . 101 370 55 77 55 140 259 90 982 Gun 4100 | 18 82 50 168 10 . . 316 305 272 188 68 8 52 400 37 75 . 101 370 55 65 55 140 253 87 925 Cannon . | . . . . . . . . . . . . . . . . . . . . . . . . . . . Launcher 85 | . . . . . . 1 6 . . . . . . . . . . . . . 12 . . 6 3 57 Special . | . . . . . . . . . . . . . . . . . . . . . . . . . . . Kinetic 3811 | 18 82 50 45 . . . 236 296 272 188 68 8 52 400 37 75 . 101 370 55 65 55 140 220 87 891 Thermal 192 | . . . 83 10 . . 80 9 . . . . . . . . . . . . . . . . . 10 Explosive 85 | . . . . . . 1 6 . . . . . . . . . . . . . 12 . . 6 3 57 Electromagnetic 40 | . . . 40 . . . . . . . . . . . . . . . . . . . . . . . Entropic 57 | . . . . . . . . . . . . . . . . . . . . . . . . 33 . 24 Robot Hit Streak 58 | 6 11 14 23 4 . . 21 20 31 23 17 4 12 13 20 32 . 34 16 10 21 11 29 30 32 58 Robot Miss Streak 7 | 2 4 2 4 4 . . 5 3 3 4 2 1 4 3 2 2 . 3 4 4 6 2 7 3 2 4 Penetration Max 2 | . . . . . . . . . . . . . . 1 1 . . . 1 1 . . 1 2 1 2 Secondary Targets 94 | . . . 2 1 . . 4 5 2 3 1 . . 14 2 . . 3 5 3 3 2 3 12 2 27 Max Gunslinging Chain 2 | . . . 1 1 . . 1 1 1 1 1 . . 1 1 . . 1 1 1 2 1 1 1 1 2 Shots Hit Robots 2810 | 12 57 38 131 4 . . 223 207 199 136 55 13 34 251 29 60 . 68 230 37 52 36 89 195 62 592 Core Hits 1466 | 5 34 10 60 3 . 4 90 82 78 54 18 3 16 119 9 11 . 22 104 18 61 15 36 108 36 470 Critical Kills 76 | . . . . . . . . 3 . 1 . . 1 . 1 1 . 1 10 4 2 1 1 4 3 43 Critical Parts Destroyed 79 | . . . . . . . . . . . . . . 4 . . . 1 9 3 2 . 1 8 2 49 Critical Strikes 172 | . . . 2 . . . 3 3 . 1 . . 1 4 1 1 . 4 19 7 4 1 2 13 5 101 Burn 5 | . . . 2 . . . 3 . . . . . . . . . . . . . . . . . . . Destroy 159 | . . . . . . . . 3 . 1 . . 1 4 1 1 . 4 19 7 4 1 2 10 5 96 Detonate 5 | . . . . . . . . . . . . . . . . . . . . . . . . 3 . 2 Sunder 3 | . . . . . . . . . . . . . . . . . . . . . . . . . . 3 Melee Attacks 47 | . . . . . . . 1 18 . . . 11 . 4 . . . . 4 . 1 1 . . 1 6 Impact . | . . . . . . . . . . . . . . . . . . . . . . . . . . . Slashing 39 | . . . . . . . 1 18 . . . 11 . 4 . . . . 4 . 1 . . . . . Piercing . | . . . . . . . . . . . . . . . . . . . . . . . . . . . Entropic 8 | . . . . . . . . . . . . . . . . . . . . . . 1 . . 1 6 Sneak Attacks 17 | . . . . . . . . 3 . . . 9 . 1 . . . . . . . . . . . 4 Combat Hostiles . | . . . . . . . . . . . . . . . . . . . . . . . . . . . Follow-up Attacks . | . . . . . . . . . . . . . . . . . . . . . . . . . . . Damage Inflicted 90183 | 186 742 476 2697 108 . 177 4922 4068 3517 3084 1261 1080 827 7268 796 1467 . 1708 7634 1016 2891 738 1773 7387 2462 31898 Guns 65945 | 170 734 472 2424 75 . . 3763 3550 3505 2976 1261 98 826 6180 796 1467 . 1708 6596 1016 1055 738 1773 4944 1424 18394 Cannons . | . . . . . . . . . . . . . . . . . . . . . . . . . . . Explosions 21230 | . . . 198 . . 159 1047 . . . . . . 867 . . . . 848 . 1836 . . 2443 1038 12794 Melee 2206 | . . . . . . . . 434 . . . 982 . 85 . . . . . . . . . . . 705 Ramming 802 | 16 8 4 75 33 . 18 112 84 12 108 . . 1 136 . . . . 190 . . . . . . 5 Kinetic 60823 | 170 734 472 446 . . . 2465 3438 3505 2976 1261 98 826 6180 796 1467 . 1708 6596 1016 1055 738 1773 3944 1424 17735 Thermal 5508 | . . . 1568 75 . . 1298 112 . . . . . 867 . . . . 550 . . . . 735 . 303 Explosive 18698 | . . . . . . 159 1047 . . . . . . . . . . . 298 . 1836 . . 1708 1038 12612 Electromagnetic 608 | . . . 608 . . . . . . . . . . . . . . . . . . . . . . . Impact . | . . . . . . . . . . . . . . . . . . . . . . . . . . . Slashing 1501 | . . . . . . . . 434 . . . 982 . 85 . . . . . . . . . . . . Piercing . | . . . . . . . . . . . . . . . . . . . . . . . . . . . Entropic 2243 | . . . . . . . . . . . . . . . . . . . . . . . . 1000 . 1243 Highest Corruption 10 | . . . 1 1 1 1 . 2 1 . . 10 3 3 3 4 4 5 3 3 . . . 3 . 3 Average Corruption 2 | . . . 1 1 1 1 . 1 1 . . 5 1 1 2 3 4 4 1 2 . . . 3 . 1 Corruption Purged 43 | . . . . . . . . 3 2 . . 17 3 5 . . . . 2 3 . . . . . 8 Corruption Blocked 49 | . . . . . . . . . . . . . . . . . . . . . . 42 . . 7 . Effects 94 | . . . 1 3 2 3 . 1 . . . 8 . 3 16 17 7 16 9 3 . . . 4 . 1 Message Errors 23 | . . . . 2 . . . . . . . 2 . 1 4 4 2 2 5 1 . . . . . . Matter Fused 16 | . . . 1 . . . . 1 . . . 1 . 1 3 . 1 4 2 1 . . . 1 . . Heat Flow Errors 17 | . . . . . . 1 . . . . . 1 . 1 1 4 . 5 1 . . . . 2 . 1 Energy Discharges 10 | . . . . 1 . 1 . . . . . 1 . . 3 1 1 1 1 . . . . . . . Parts Rejected 1 | . . . . . . . . . . . . . . . . . . . . 1 . . . . . . Parts Fused 1 | . . . . . . . . . . . . . . . . . . . . . . . . 1 . . Data Loss (minor) 12 | . . . . . 1 . . . . . . 2 . . 2 3 2 2 . . . . . . . . Data Loss (major) 5 | . . . . . . 1 . . . . . . . . 1 2 1 . . . . . . . . . Misfires 5 | . . . . . . . . . . . . . . . 2 2 . 1 . . . . . . . . Alerts 3 | . . . . . 1 . . . . . . 1 . . . . . 1 . . . . . . . . Weapon Failures 1 | . . . . . . . . . . . . . . . . 1 . . . . . . . . . . Overload Shots . | . . . . . . . . . . . . . . . . . . . . . . . . . . . Overflow Damage 1084 | . . . . . . . 10 53 . . . 494 . 28 . . . . 147 . 2 . . 19 90 241 Projectiles . | . . . . . . . . . . . . . . . . . . . . . . . . . . . Explosions 490 | . . . . . . . 10 . . . . . . 16 . . . . 112 . 2 . . 19 90 241 Melee 594 | . . . . . . . . 53 . . . 494 . 12 . . . . 35 . . . . . . . Knockbacks 7 | . . . . 1 . . . . . 1 . . . 2 . . . . 3 . . . . . . . Impact 7 | . . . . 1 . . . . . 1 . . . 2 . . . . 3 . . . . . . . Kinetic . | . . . . . . . . . . . . . . . . . . . . . . . . . . . Secondary . | . . . . . . . . . . . . . . . . . . . . . . . . . . . Self-Inflicted Damage 607 | . . . 24 . . 16 . . . . . . . 76 . . . . 83 . . . . . . 408 Shots 11 | . . . 1 . . 1 . . . . . . . 1 . . . . 1 . . . . . . 7 Rammed 69 | 5 2 3 7 2 . 3 8 5 3 10 . . 1 9 . . . . 10 . . . . . . 1 Targets Rammed 80 | 5 3 3 9 2 . 3 12 9 3 10 . . 1 9 . . . . 10 . . . . . . 1 Kicked . | . . . . . . . . . . . . . . . . . . . . . . . . . . . Crushed 11 | . 1 . 2 . . . 4 4 . . . . . . . . . . . . . . . . . . Highest Temperature 455 | . 2 3 138 . . 133 109 108 154 . . 271 8 90 207 282 . 124 455 340 241 104 96 166 30 346 Average Temperature 54 | . 2 3 30 . . 75 30 28 54 . . 97 3 15 109 92 . 30 104 121 101 38 32 30 11 69 Received Heat Transfer 4117 | . 186 222 345 . . . 441 483 84 210 22 27 . 369 . 75 . 27 170 44 228 75 148 216 18 727 Effects 1 | . . . . . . . . . . . . . . . . . . . 1 . . . . . . . Energy Bleed 1 | . . . . . . . . . . . . . . . . . . . 1 . . . . . . . Siege Activations 28 | . . . . . . . . . . . . . . . . . . . . . . 2 4 4 1 17 Total Turns 578 | . . . . . . . . . . . . . . . . . . . . . . 9 53 154 10 352 Longest Duration 72 | . . . . . . . . . . . . . . . . . . . . . . 8 25 72 10 53 Robots Corrupted 1 | . . . 1 . . . . . . . . . . . . . . . . . . . . . . . Combat Hostiles 1 | . . . 1 . . . . . . . . . . . . . . . . . . . . . . . Parts Fried 4 | . . . 4 . . . . . . . . . . . . . . . . . . . . . . . Impact Corruptions 3 | . . . . . . . . . . . . . . 1 . . . . 2 . . . . . . . Robots Melted 1 | . . . . . . . . . . . . . . . . . . . . . . . . . . 1 Combat Hostiles 1 | . . . . . . . . . . . . . . . . . . . . . . . . . . 1 Parts Melted 13 | . . . 8 . . . 2 1 . . . . . . . . . . . . . . . . . 2 Heat Transferred 7472 | . . . 2753 148 . . 2701 222 . . . . . 450 . . . . 450 . . . . 500 . 248 Parts Sabotaged 4 | . . . . . . . . . . . . . . . . . . . . . . . . . . 4 Parts Stolen . | . . . . . . . . . . . . . . . . . . . . . . . . . . . Parts Stripped . | . . . . . . . . . . . . . . . . . . . . . . . . . . . Power Chain Reactions 4 | . . . 3 . . . . . . . . . . . . . . . . . . . . 1 . . Alert | -11 -10 -10 -9 -9 -9 -8 -8 -7 -6 -6 -6 -6 -6 -5 -5 -5 -5 -4 -4 -4 -4 -4 -3 -3 -2 -1 ------- Run | Yrd Mat Min Mat Min Exi Min Mat Fac Fac Ext Cet Arc Hub Fac Upp Upp Zhi Pro Fac Upp Upp War Pro Res Res Acc Peak Influence 4800 | 25 175 64 476 243 . 97 754 502 453 383 238 334 916 1250 . . . . 901 . . . . 904 637 4800 Initial 488 | . 16 1 . 158 . . 37 326 238 201 42 95 53 410 . . . . 31 . . . . 320 488 328 Average 626 | 12 72 21 259 239 . 13 441 251 312 184 124 258 309 651 . . . . 283 . . . . 201 503 2887 Maximum Alert Level 5 | . . . 2 1 . . 3 2 2 1 1 1 3 4 . . . . 3 . . . . 3 2 5 Low Security (%) 31 | 100 100 100 38 3 . 100 18 38 . 58 71 33 43 . . . . . 31 . . . . 70 . . Level 1 31 | . . . 30 96 . . 32 44 90 41 28 66 33 22 . . . . 50 . . . . 15 18 10 Level 2 18 | . . . 30 . . . 22 16 9 . . . 12 43 . . . . 11 . . . . 2 81 3 Level 3 7 | . . . . . . . 25 . . . . . 11 21 . . . . 6 . . . . 11 . 9 Level 4 2 | . . . . . . . . . . . . . . 12 . . . . . . . . . . . 10 Level 5 1 | . . . . . . . . . . . . . . . . . . . . . . . . . . 13 High Security 6 | . . . . . . . . . . . . . . . . . . . . . . . . . . 52 Max Security . | . . . . . . . . . . . . . . . . . . . . . . . . . . . Sterilizations 1 | . . . . . . . . . . . . . . . . . . . . . . . . . . 1 Squads Dispatched 97 | . 2 . 3 . . . 7 9 6 1 . . 6 13 . . . . 9 . . . . 7 2 32 Investigation 13 | . . . 1 . . . 2 1 1 1 . . 2 2 . . . . . . . . . 3 . . Extermination 20 | . . . . . . . . 4 2 . . . . 4 . . . . 6 . . . . . . 4 Reinforcement 30 | . 2 . 2 . . . 2 . 3 . . . 2 4 . . . . 2 . . . . 4 2 7 Assault 25 | . . . . . . . 1 1 . . . . 1 3 . . . . 1 . . . . . . 18 Garrison 9 | . . . . . . . 2 3 . . . . 1 . . . . . . . . . . . . 3 Intercept . | . . . . . . . . . . . . . . . . . . . . . . . . . . . Searches Triggered . | . . . . . . . . . . . . . . . . . . . . . . . . . . . Construction Impeded 7 | . . . 1 . . . . . . . . . . . . . . . 2 . . . . . . 4 Haulers Reinforced 8 | . . . . . . . . . 2 . . . . 2 . . . . . . . . . . 2 2 Active Scanning Responses . | . . . . . . . . . . . . . . . . . . . . . . . . . . . Cargo Convoy Interrupts . | . . . . . . . . . . . . . . . . . . . . . . . . . . . Stealth | -11 -10 -10 -9 -9 -9 -8 -8 -7 -6 -6 -6 -6 -6 -5 -5 -5 -5 -4 -4 -4 -4 -4 -3 -3 -2 -1 --------- Run | Yrd Mat Min Mat Min Exi Min Mat Fac Fac Ext Cet Arc Hub Fac Upp Upp Zhi Pro Fac Upp Upp War Pro Res Res Acc Distress Signals 33 | . 1 . 2 . . . 1 1 1 1 2 . 2 2 1 . . . 1 . . 1 . 2 8 7 Communications Jammed . | . . . . . . . . . . . . . . . . . . . . . . . . . . . Distress Signals . | . . . . . . . . . . . . . . . . . . . . . . . . . . . Times Spotted 695 | . 16 5 41 4 . 3 51 35 21 20 10 6 22 61 4 4 . 11 50 9 20 23 14 46 15 204 Peak Tracking Total 13 | . 3 2 5 3 . 3 5 5 4 4 5 2 5 5 3 1 . 6 9 4 12 12 6 8 4 13 Tactical Retreats 21 | . 1 . 1 1 . . . . . 1 . . 2 1 . 1 . . 1 1 . 3 . . . 8 Traps | -11 -10 -10 -9 -9 -9 -8 -8 -7 -6 -6 -6 -6 -6 -5 -5 -5 -5 -4 -4 -4 -4 -4 -3 -3 -2 -1 ------- Run | Yrd Mat Min Mat Min Exi Min Mat Fac Fac Ext Cet Arc Hub Fac Upp Upp Zhi Pro Fac Upp Upp War Pro Res Res Acc Traps Triggered 20 | . . 1 1 . . . 1 5 . . . . 1 5 . . . . . . . . . 3 . 3 Indirectly . | . . . . . . . . . . . . . . . . . . . . . . . . . . . Trap Hack Attempts . | . . . . . . . . . . . . . . . . . . . . . . . . . . . Triggered . | . . . . . . . . . . . . . . . . . . . . . . . . . . . Disarmed . | . . . . . . . . . . . . . . . . . . . . . . . . . . . Reprogrammed . | . . . . . . . . . . . . . . . . . . . . . . . . . . . Reused . | . . . . . . . . . . . . . . . . . . . . . . . . . . . Traps Extracted . | . . . . . . . . . . . . . . . . . . . . . . . . . . . Installed . | . . . . . . . . . . . . . . . . . . . . . . . . . . . Triggered 18 | . . . . . . . . . . . . . . . . . . . . . . 17 1 . . . Machines | -11 -10 -10 -9 -9 -9 -8 -8 -7 -6 -6 -6 -6 -6 -5 -5 -5 -5 -4 -4 -4 -4 -4 -3 -3 -2 -1 ---------- Run | Yrd Mat Min Mat Min Exi Min Mat Fac Fac Ext Cet Arc Hub Fac Upp Upp Zhi Pro Fac Upp Upp War Pro Res Res Acc Machines Disabled 40 | . . . 1 . . . 3 . . . . 2 1 12 . . . . 11 . 2 . . 2 2 4 Max in Single Turn 7 | . . . 1 . . . 1 . . . . . . 7 . . . . 4 . 1 . . 1 1 1 Garrison Access 11 | . . . . . . . 1 1 1 . . . 1 2 . . . . 2 . . . . 1 1 1 Network Hub 1 | . . . . . . . . . . . . . 1 . . . . . . . . . . . . . Energy Cycler 2 | . . . . . . . . . . . . . . . . . . . . . . . . . . 2 Machines Repaired . | . . . . . . . . . . . . . . . . . . . . . . . . . . . Machines Dismantled . | . . . . . . . . . . . . . . . . . . . . . . . . . . . Machines Sabotaged 1 | . . . . . . . . . . . . . 1 . . . . . . . . . . . . . Overloaded Fab Kills . | . . . . . . . . . . . . . . . . . . . . . . . . . . . Hacking | -11 -10 -10 -9 -9 -9 -8 -8 -7 -6 -6 -6 -6 -6 -5 -5 -5 -5 -4 -4 -4 -4 -4 -3 -3 -2 -1 --------- Run | Yrd Mat Min Mat Min Exi Min Mat Fac Fac Ext Cet Arc Hub Fac Upp Upp Zhi Pro Fac Upp Upp War Pro Res Res Acc Machines Accessed 128 | . 7 1 14 . 2 . 15 13 5 13 3 . 3 12 1 1 9 . 11 . 1 4 . 8 1 4 Terminals 77 | . 6 . 11 . . . 11 6 4 13 3 . 3 5 . 1 . . 5 . 1 . . 5 1 2 Fabricators 6 | . . . . . . . . 1 . . . . . 2 . . . . 2 . . . . 1 . . Repair Stations 12 | . 1 . 2 . . . 1 4 . . . . . 1 . . . . 2 . . . . 1 . . Recycling Units . | . . . . . . . . . . . . . . . . . . . . . . . . . . . Scanalyzers 5 | . . . 1 . . . 2 . . . . . . 2 . . . . . . . . . . . . Garrison Access 11 | . . . . . . . 1 2 1 . . . . 2 . . . . 2 . . . . 1 . 2 Total Hacks 401 | . 30 1 66 . 24 . 44 27 7 26 7 . 8 32 2 1 48 . 34 . 6 8 . 20 2 8 Successful 226 | . 19 1 34 . 24 . 21 6 1 10 2 . 4 13 2 1 48 . 19 . 6 8 . 5 1 1 Failed 173 | . 11 . 31 . . . 22 21 6 16 5 . 4 19 . . . . 15 . . . . 15 1 7 Catastrophic 36 | . . . 3 . . . 2 5 3 3 2 . . 6 . . . . 5 . . . . 5 . 2 Database Lockouts 2 | . . . 1 . . . 1 . . . . . . . . . . . . . . . . . . . Manual 106 | . 17 . 27 . 1 . 19 7 3 7 1 . 9 4 . . . . 6 . . . . 5 . . Terminals 220 | . 24 . 42 . . . 34 14 6 26 7 . 8 15 . 1 . . 17 . 6 . . 13 2 5 Fabricators 9 | . . . . . . . . 1 . . . . . 3 . . . . 4 . . . . 1 . . Repair Stations 47 | . 6 . 11 . . . 2 9 . . . . . 3 . . . . 11 . . . . 5 . . Recycling Units . | . . . . . . . . . . . . . . . . . . . . . . . . . . . Scanalyzers 26 | . . . 13 . . . 5 . . . . . . 8 . . . . . . . . . . . . Garrison Access 16 | . . . . . . . 3 3 1 . . . . 3 . . . . 2 . . . . 1 . 3 Terminal Hacks 144 | . 10 1 10 . 24 . 8 2 . 10 2 . . 2 2 1 48 . 7 . 6 8 . 2 1 . Record 81 | . . . . . 23 . . . . . 1 . . . 2 1 36 . 3 . 6 7 . 1 1 . Part Schematic 4 | . . . . . . . . . . . . . . . . . 4 . . . . . . . . . Robot Analysis 13 | . 4 . 3 . . . 1 . . 1 . . . . . . 4 . . . . . . . . . Prototype ID Bank 16 | . 2 . 2 . . . 4 . . 3 . . . . . . 4 . 1 . . . . . . . Open Door 9 | . . 1 . . . . . . . 6 1 . . . . . . . . . . 1 . . . . Terminal Index 1 | . 1 . . . . . . . . . . . . . . . . . . . . . . . . . Alert Level 6 | . . . . . . . 1 2 . . . . . 1 . . . . 2 . . . . . . . Unreport Threat 2 | . . . . . . . 1 . . . . . . . . . . . 1 . . . . . . . Locate Traps 8 | . 2 . 4 . . . 1 . . . . . . 1 . . . . . . . . . . . . Patrol Status 1 | . 1 . . . . . . . . . . . . . . . . . . . . . . . . . Transport Status 1 | . . . 1 . . . . . . . . . . . . . . . . . . . . . . . Zone Layout 1 | . . . . . . . . . . . . . . . . . . . . . . . . 1 . . Derelict Proto ID Bank 1 | . . . . . 1 . . . . . . . . . . . . . . . . . . . . . Fabricator Hacks 3 | . . . . . . . . . . . . . . 2 . . . . 1 . . . . . . . Network Status 1 | . . . . . . . . . . . . . . . . . . . 1 . . . . . . . Load Schematic 1 | . . . . . . . . . . . . . . 1 . . . . . . . . . . . . Build 1 | . . . . . . . . . . . . . . 1 . . . . . . . . . . . . Repair Station Hacks 28 | . 6 . 7 . . . 2 3 . . . . . 2 . . . . 7 . . . . 1 . . Scan Component 17 | . 3 . 4 . . . 1 3 . . . . . 1 . . . . 4 . . . . 1 . . Repair 11 | . 3 . 3 . . . 1 . . . . . . 1 . . . . 3 . . . . . . . Recycling Unit Hacks . | . . . . . . . . . . . . . . . . . . . . . . . . . . . Scanalyzer 22 | . . . 13 . . . 4 . . . . . . 5 . . . . . . . . . . . . Insert Component 10 | . . . 5 . . . 2 . . . . . . 3 . . . . . . . . . . . . Analyze 12 | . . . 8 . . . 2 . . . . . . 2 . . . . . . . . . . . . Garrison Access Hacks 6 | . . . . . . . . . 1 . . . . 2 . . . . 2 . . . . . . 1 Seal Access 6 | . . . . . . . . . 1 . . . . 2 . . . . 2 . . . . . . 1 Unauthorized Hacks 23 | . 3 . 4 . . . 7 1 . . . . 4 . . . . . 2 . . . . 2 . . Terminals 22 | . 3 . 4 . . . 6 1 . . . . 4 . . . . . 2 . . . . 2 . . Assimilate 2 | . . . . . . . 1 . . . . . . . . . . . 1 . . . . . . . Botnet 16 | . 2 . 3 . . . 5 1 . . . . 2 . . . . . 1 . . . . 2 . . Operators 2 | . 1 . 1 . . . . . . . . . . . . . . . . . . . . . . . Sabotage 2 | . . . . . . . . . . . . . 2 . . . . . . . . . . . . . Fabricators . | . . . . . . . . . . . . . . . . . . . . . . . . . . . Repair Stations . | . . . . . . . . . . . . . . . . . . . . . . . . . . . Recycling Units . | . . . . . . . . . . . . . . . . . . . . . . . . . . . Scanalyzers . | . . . . . . . . . . . . . . . . . . . . . . . . . . . Garrison Access 1 | . . . . . . . 1 . . . . . . . . . . . . . . . . . . . Jam 1 | . . . . . . . 1 . . . . . . . . . . . . . . . . . . . Data Cores Recovered 3 | . . . . . . . . . . 1 . . . 1 . . . . . . . . . 1 . . Used . | . . . . . . . . . . . . . . . . . . . . . . . . . . . Hacking Detections 93 | . 6 . 13 . . . 14 13 4 11 2 . 1 10 . . . . 8 . . . . 7 1 3 Full Trace Events 6 | . . . 1 . . . 1 1 1 1 . . . 1 . . . . . . . . . . . . Feedback Events . | . . . . . . . . . . . . . . . . . . . . . . . . . . . Feedback Blocked . | . . . . . . . . . . . . . . . . . . . . . . . . . . . Robot Schematics Acquired . | . . . . . . . . . . . . . . . . . . . . . . . . . . . Robots Built . | . . . . . . . . . . . . . . . . . . . . . . . . . . . Authchips . | . . . . . . . . . . . . . . . . . . . . . . . . . . . Time . | . . . . . . . . . . . . . . . . . . . . . . . . . . . Total Robot Build Rating . | . . . . . . . . . . . . . . . . . . . . . . . . . . . Part Schematics Acquired 13 | . . . 5 . . . 2 . . . . . . 2 . . 4 . . . . . . . . . Parts Built 1 | . . . . . . . . . . . . . . 1 . . . . . . . . . . . . Authchips . | . . . . . . . . . . . . . . . . . . . . . . . . . . . Time 204 | . . . . . . . . . . . . . . 204 . . . . . . . . . . . . Total Part Build Rating 8 | . . . . . . . . . . . . . . 8 . . . . . . . . . . . . Parts Repaired 11 | . 3 . 3 . . . 1 . . . . . . 1 . . . . 3 . . . . . . . Time 452 | . 78 . 84 . . . 16 . . . . . . 30 . . . . 244 . . . . . . . Parts Recycled . | . . . . . . . . . . . . . . . . . . . . . . . . . . . Recycled Matter . | . . . . . . . . . . . . . . . . . . . . . . . . . . . Retrieved Matter . | . . . . . . . . . . . . . . . . . . . . . . . . . . . Retrieved Components . | . . . . . . . . . . . . . . . . . . . . . . . . . . . Parts Scanalyzed 9 | . . . 5 . . . 2 . . . . . . 2 . . . . . . . . . . . . Part Schematics Acquired 9 | . . . 5 . . . 2 . . . . . . 2 . . . . . . . . . . . . Parts Damaged 2 | . . . 1 . . . . . . . . . . 1 . . . . . . . . . . . . Bothacking | -11 -10 -10 -9 -9 -9 -8 -8 -7 -6 -6 -6 -6 -6 -5 -5 -5 -5 -4 -4 -4 -4 -4 -3 -3 -2 -1 ------------ Run | Yrd Mat Min Mat Min Exi Min Mat Fac Fac Ext Cet Arc Hub Fac Upp Upp Zhi Pro Fac Upp Upp War Pro Res Res Acc Used RIF Installer . | . . . . . . . . . . . . . . . . . . . . . . . . . . . Robots Hacked . | . . . . . . . . . . . . . . . . . . . . . . . . . . . Non-combat . | . . . . . . . . . . . . . . . . . . . . . . . . . . . Combat . | . . . . . . . . . . . . . . . . . . . . . . . . . . . Robot Hacks Applied . | . . . . . . . . . . . . . . . . . . . . . . . . . . . Relay Couplers Released 10 | . . . . . . . . 1 2 . . . 2 . . . . . 4 . . . . 1 . . Machine Destruction 6 | . . . . . . . . 1 2 . . . 2 . . . . . . . . . . 1 . . Programmers 4 | . . . . . . . . . . . . . . . . . . . 4 . . . . . . . Fabnet Peak Effective % . | . . . . . . . . . . . . . . . . . . . . . . . . . . . Robots Rewired 3 | . . . . . . . . . . 3 . . . . . . . . . . . . . . . . Allies Hacked . | . . . . . . . . . . . . . . . . . . . . . . . . . . . Hacks Repelled . | . . . . . . . . . . . . . . . . . . . . . . . . . . . Allies | -11 -10 -10 -9 -9 -9 -8 -8 -7 -6 -6 -6 -6 -6 -5 -5 -5 -5 -4 -4 -4 -4 -4 -3 -3 -2 -1 -------- Run | Yrd Mat Min Mat Min Exi Min Mat Fac Fac Ext Cet Arc Hub Fac Upp Upp Zhi Pro Fac Upp Upp War Pro Res Res Acc Total Allies 22 | . . 2 . 3 . . . . . 11 5 . . . . . . . 1 . . . . . . . Largest Group 8 | . . 2 . 3 3 3 3 . . 7 8 8 6 . . . . . 1 . . . . . . . Highest-Rated Group 691 | . . 46 . 40 40 40 40 . . 322 691 691 511 . . . . . 26 . . . . . . . Highest-Rated Ally 159 | . . 31 . 16 16 16 16 . . 159 159 159 96 . . . . . 26 . . . . . . . Total Orders . | . . . . . . . . . . . . . . . . . . . . . . . . . . . Ally Attacks 182 | . . 6 . . . . 22 . . 7 55 24 68 . . . . . . . . . . . . . Total Damage 5260 | . . 106 . . . . 185 . . 176 1215 805 2773 . . . . . . . . . . . . . Kills 27 | . . 1 . . . . 2 . . 1 6 3 14 . . . . . . . . . . . . . Allies Corrupted 1 | . . . . . . . . . . . . . 1 . . . . . . . . . . . . . Allies Melted 2 | . . . . . . . . . . . . . . . . . . . . . . 1 . . 1 . Intel | -11 -10 -10 -9 -9 -9 -8 -8 -7 -6 -6 -6 -6 -6 -5 -5 -5 -5 -4 -4 -4 -4 -4 -3 -3 -2 -1 ------- Run | Yrd Mat Min Mat Min Exi Min Mat Fac Fac Ext Cet Arc Hub Fac Upp Upp Zhi Pro Fac Upp Upp War Pro Res Res Acc Robot Analysis Total 13 | . 4 . 3 . . . 1 . . 1 . . . . . . 4 . . . . . . . . . Derelict Logs Recovered 9 | . . 2 . 1 . . . . . . . . . . 1 1 . 1 . 1 2 . . . . . Drone Launches . | . . . . . . . . . . . . . . . . . . . . . . . . . . . Drone Recoveries . | . . . . . . . . . . . . . . . . . . . . . . . . . . . Exploration | -11 -10 -10 -9 -9 -9 -8 -8 -7 -6 -6 -6 -6 -6 -5 -5 -5 -5 -4 -4 -4 -4 -4 -3 -3 -2 -1 ------------- Run | Yrd Mat Min Mat Min Exi Min Mat Fac Fac Ext Cet Arc Hub Fac Upp Upp Zhi Pro Fac Upp Upp War Pro Res Res Acc Turns Passed 39012 | 171 1426 555 3030 366 347 336 2933 4122 1456 1652 348 521 196 4368 831 998 276 668 3098 621 1071 1080 501 2802 1383 3856 Spaces Moved 20364 | 79 675 277 1560 217 216 202 1538 2291 771 916 179 168 98 2229 507 603 156 384 1539 352 614 630 246 1524 708 1685 Core 4 | 4 . . . . . . . . . . . . . . . . . . . . . . . . . . Treads 20360 | 75 675 277 1560 217 216 202 1538 2291 771 916 179 168 98 2229 507 603 156 384 1539 352 614 630 246 1524 708 1685 Legs . | . . . . . . . . . . . . . . . . . . . . . . . . . . . Wheels . | . . . . . . . . . . . . . . . . . . . . . . . . . . . Hover . | . . . . . . . . . . . . . . . . . . . . . . . . . . . Flight . | . . . . . . . . . . . . . . . . . . . . . . . . . . . Fastest Speed 50 | 50 160 160 160 160 160 160 155 155 156 160 160 160 160 160 160 160 160 160 160 160 160 160 160 152 165 150 Average Speed 160 | 154 160 160 160 160 160 160 156 157 157 160 160 160 160 160 160 160 160 160 160 160 160 160 160 159 172 170 Slowest Speed 255 | 160 160 160 160 160 160 160 163 162 160 240 160 160 160 160 160 160 160 160 160 160 160 160 160 255 173 250 Overloaded Moves . | . . . . . . . . . . . . . . . . . . . . . . . . . . . Propulsion Burnouts . | . . . . . . . . . . . . . . . . . . . . . . . . . . . Robots Hopped . | . . . . . . . . . . . . . . . . . . . . . . . . . . . Cave-ins Triggered . | . . . . . . . . . . . . . . . . . . . . . . . . . . . Exploration Rate (%) 58 | 4 96 56 99 58 60 52 97 58 23 89 77 90 17 46 70 66 62 60 26 57 71 78 44 40 28 47 Regions Visited 26 Branch Regions 16 Pre-discovered Areas 7 | . . 1 . 1 1 . . . . . . . . . . . 3 . . 1 . . . . . . Known Exits Taken 3 | . . . 1 . . . . . . . . . . . . . . . . . . 1 . . 1 . Unknown Exits Taken 23 | 1 1 1 . 1 1 1 1 1 1 1 1 1 1 1 1 1 1 1 1 1 1 . 1 1 . . Scrap Searched 12 | . . 1 . 1 . 1 . . . . . . . . 1 2 . 2 . . 2 . 2 . . . Spaces Dug 84 | . . . . . . 14 1 5 . . . . . 57 . . . . 4 . . 1 . . 1 1 Terrain Destroyed 1173 | . . . 9 . . 14 50 5 . 1 . 3 . 60 . 1 . 3 191 25 57 3 8 83 43 617 Melee 16 | . . . . . . . 1 5 . . . . . 3 . . . . 4 . . 1 . . 1 1 Projectile 205 | . . . . . . . . . . 1 . 3 . 3 . 1 . 3 67 25 11 1 5 29 10 46 AOE 938 | . . . 9 . . 14 49 . . . . . . 54 . . . . 118 . 46 . . 51 31 566 Terrain Rammed . | . . . . . . . . . . . . . . . . . . . . . . . . . . . Walls Destroyed . | . . . . . . . . . . . . . . . . . . . . . . . . . . . Machines Disabled . | . . . . . . . . . . . . . . . . . . . . . . . . . . . Actions | -11 -10 -10 -9 -9 -9 -8 -8 -7 -6 -6 -6 -6 -6 -5 -5 -5 -5 -4 -4 -4 -4 -4 -3 -3 -2 -1 --------- Run | Yrd Mat Min Mat Min Exi Min Mat Fac Fac Ext Cet Arc Hub Fac Upp Upp Zhi Pro Fac Upp Upp War Pro Res Res Acc Total 25070 | 104 939 338 1934 226 219 211 1907 2679 952 1042 223 399 119 2925 519 619 186 413 2061 390 671 684 308 1815 840 2347 Wait 2597 | . 196 24 190 . . 2 201 185 79 20 2 205 4 550 4 . 1 5 382 15 16 16 35 113 54 298 Move 20337 | 78 674 276 1559 216 215 201 1537 2290 770 915 178 167 97 2228 506 602 155 383 1538 351 613 629 245 1523 707 1684 Hop . | . . . . . . . . . . . . . . . . . . . . . . . . . . . Pick Up 209 | 5 12 4 25 1 1 . 18 26 7 6 7 3 1 10 . . 6 1 15 4 3 2 . 18 10 24 Fast Attach 109 | 6 4 . 11 . . . 3 7 3 1 2 2 . 8 . . 5 . . 3 2 4 . 18 10 20 Attach 105 | 1 . . 1 . . 2 6 8 2 3 2 2 . 5 . 1 4 2 9 2 5 2 . 18 . 30 Detach 36 | . 1 . . . 2 . 1 1 . . . . . 1 . . 4 . . . 3 2 . 8 1 12 Swap 256 | . 3 2 19 . . 2 24 28 8 6 3 5 2 17 1 . 2 2 18 3 7 7 . 28 13 56 Drop 267 | . 5 4 36 2 1 . 22 30 12 7 12 2 1 13 . . 9 . 11 1 2 8 . 32 23 34 Fire 991 | 9 41 25 84 5 . 1 82 77 68 47 17 2 13 80 7 16 . 20 74 11 19 11 28 57 21 176 Melee 47 | . . . . . . . 1 18 . . . 11 . 4 . . . . 4 . 1 1 . . 1 6 Ram . | . . . . . . . . . . . . . . . . . . . . . . . . . . . Kick . | . . . . . . . . . . . . . . . . . . . . . . . . . . . Crush 80 | 5 3 3 9 2 . 3 12 9 3 10 . . 1 9 . . . . 10 . . . . . . 1 Escape Stasis 6 | . . . . . . . . . . . . . . . . . . . . . . . . . . 6 Rewire 30 | . . . . . . . . . . 27 . . . . 1 . . . . . . 2 . . . . Trap . | . . . . . . . . . . . . . . . . . . . . . . . . . . . Miscellaneous . | . . . . . . . . . . . . . . . . . . . . . . . . . . . Route ------- -11/Scrapyard -10/Materials (discovered 5 exits: *Mat x3 / *Min x2) -10/Mines -9/Materials (discovered 5 exits: *Mat x3 / *Min x2) -9/Mines -9/Exiles -8/Mines -8/Materials (discovered 4 exits: *Fac x3 / [*Sto]) -7/Factory (discovered 5 exits: *Fac x3 / [*Low x2]) -6/Factory (discovered 2 exits: [*Low] / *Ext) -6/Extension (discovered 3 exits: *Fac x2 / *Cet) -6/Cetus (discovered 2 exits: *Fac / *Arc) -6/Archives (discovered 3 exits: *Fac / *Hub x2) -6/Hub_04(d) -5/Factory (discovered 2 exits: *Fac / *Upp) -5/Upper Caves -5/Upper Caves -5/Zhirov -4/Proximity Caves -4/Factory -4/Upper Caves -4/Upper Caves -4/Warlord -3/Proximity Caves -3/Research (discovered 3 exits: *Res x2 / [*Tes]) -2/Research -1/Access To Epsilon Eridani History --------- Turn | Location | Event 5 | -11/Scrapyard | Discovered new exit (range 15) 172 | -11/Scrapyard | Entered Materials 314 | -10/Materials | Build established: Mutant 403 | -10/Materials | Discovered new exit (range 8) 612 | -10/Materials | Discovered new exit (range 16) 995 | -10/Materials | Discovered new exit (range 12) 1372 | -10/Materials | Discovered new exit (range 8) 1424 | -10/Materials | Discovered new exit (range 13) 1482 | -10/Materials | Repaired Assault Rifle? 1532 | -10/Materials | Repaired Lgt. Treads 1559 | -10/Materials | Repaired Lgt. Treads 1598 | -10/Materials | Entered Mines 1607 | -10/Mines | Assembled infested the area 1709 | -10/Mines | Learned location of Storage (-8) 1962 | -10/Mines | Learned 4 Materials zone layouts 1975 | -10/Mines | Met a Derelict who couldn't figure out how to use a Trap Extractor 2138 | -10/Mines | Discovered new exit (range 10) 2153 | -10/Mines | Entered Materials 2153 | -9/Materials | Evolved 2 slots: Propulsion x1, Utility x1 2154 | -9/Materials | Identified exit to Mines 2515 | -9/Materials | Build established: Scavenger-Mutant 2527 | -9/Materials | Repaired Assault Rifle 2554 | -9/Materials | Repaired Lgt. Treads 2587 | -9/Materials | Repaired Imp. Ion Engine 3062 | -9/Materials | Discovered new exit (range 11) 3228 | -9/Materials | Discovered exit to Mines (range 14) 3334 | -9/Materials | Build established: Mutant 3455 | -9/Materials | Discovered new exit (range 3) 3835 | -9/Materials | Discovered new exit (range 3) 4151 | -9/Materials | Central database locked down 5183 | -9/Materials | Entered Mines 5188 | -9/Mines | Met a Derelict bent on vengeance 5277 | -9/Mines | Learned location of Zion (-6) 5316 | -9/Mines | Received a Rocket Launcher from a helpful Derelict 5375 | -9/Mines | Found a hidden stash of uninstalled traps 5489 | -9/Mines | Assisted by bots powering up and referring to "LRC-V3" 5540 | -9/Mines | Deemed a non-threat by the Exiles lab entrance 5542 | -9/Mines | Discovered new exit (range 5) 5549 | -9/Mines | Entered Exiles 5549 | -9/Exiles | Accompanied by 3 allies 5589 | -9/Exiles | Met 8R-AWN 5613 | -9/Exiles | Met EX-HEX 5662 | -9/Exiles | Met EX-BIN 5685 | -9/Exiles | Aligned with FarCom system 5686 | -9/Exiles | Given EX-Vault access code 5723 | -9/Exiles | Opened EX-Vault 5737 | -9/Exiles | Found Superbattery 5771 | -9/Exiles | Warned to stay clear of 0b10 Research branches 5816 | -9/Exiles | Met EX-DEC 5877 | -9/Exiles | Discovered new exit (range 14) 5896 | -9/Exiles | Left Exiles lab with Superbattery 5896 | -9/Exiles | Entered Mines 5896 | -8/Mines | Accompanied by 3 allies 6216 | -8/Mines | Discovered new exit (range 10) 6232 | -8/Mines | Entered Materials 6232 | -8/Materials | Accompanied by 3 allies 6232 | -8/Materials | Evolved 2 slots: Weapon x2 6334 | -8/Materials | Central database locked down 6335 | -8/Materials | Destroyed 7 combat bots 6545 | -8/Materials | Build established: Skirmisher 7742 | -8/Materials | Garrison activated, responded to threat 7828 | -8/Materials | Discovered new exit (range 16) 8063 | -8/Materials | Discovered new exit (range 16) 8113 | -8/Materials | Repaired Rnf. Ion Engine 8173 | -8/Materials | Discovered new exit (range 15) 8232 | -8/Materials | First assault squad dispatched 8629 | -8/Materials | Discovered new exit (range 11) 9165 | -8/Materials | Entered Factory 9165 | -7/Factory | Evolved 2 slots: Propulsion x1, Utility x1 9400 | -7/Factory | Lost 4 parts (2n2u) 9828 | -7/Factory | Discovered new exit (range 4) 10545 | -7/Factory | Discovered new exit (range 9) 12548 | -7/Factory | Discovered new exit (range 15) 12903 | -7/Factory | Discovered new exit (range 16) 13006 | -7/Factory | Discovered new exit (range 16) 13287 | -7/Factory | Entered another Factory area 13287 | -6/Factory | Evolved 2 slots: Utility x2 13575 | -6/Factory | Build established: Tank 14011 | -6/Factory | Discovered new exit (range 12) 14496 | -6/Factory | Build established: Skirmisher 14719 | -6/Factory | Discovered new exit (range 15) 14743 | -6/Factory | Entered Extension 14927 | -6/Extension | Rescued a captive Derelict 14927 | -6/Extension | Rescued a captive Derelict 15111 | -6/Extension | Rescued a captive Derelict 15112 | -6/Extension | Rescued a captive Derelict 15201 | -6/Extension | Spotted B-75 Beast 15218 | -6/Extension | Spotted B-75 Beast 15242 | -6/Extension | Destroyed B-75 Beast 15251 | -6/Extension | Lost 3 allies 15261 | -6/Extension | Destroyed B-75 Beast 15366 | -6/Extension | Discovered new exit (range 3) 16116 | -6/Extension | Rescued A7 16177 | -6/Extension | Rescued a captive Derelict 16178 | -6/Extension | Rescued a captive Derelict 16266 | -6/Extension | Rescued a captive Derelict 16315 | -6/Extension | Discovered new exit (range 10) 16317 | -6/Extension | Discovered new exit (range 6) 16395 | -6/Extension | Entered Cetus 16395 | -6/Cetus | Accompanied by 7 allies (A7) 16400 | -6/Cetus | Acquired a Cetus Manufacturing Module code from A7 16417 | -6/Cetus | Spotted Cetus Guard 16417 | -6/Cetus | Spotted Cetus Guard 16419 | -6/Cetus | Spotted Cetus Guard 16420 | -6/Cetus | Spotted Cetus Guard 16432 | -6/Cetus | Allies destroyed Cetus Guard 16435 | -6/Cetus | Allies destroyed Cetus Guard 16439 | -6/Cetus | Allies destroyed Cetus Guard 16443 | -6/Cetus | Destroyed Cetus Guard 16470 | -6/Cetus | Lost 4 allies 16567 | -6/Cetus | Started Cetus Manufacturing Module 16577 | -6/Cetus | Escorted A7 to Cetus Mainframe 16592 | -6/Cetus | Manufactured an Enhanced Grunt 16594 | -6/Cetus | Discovered new exit (range 15) 16617 | -6/Cetus | Manufactured an Enhanced Grunt 16622 | -6/Cetus | Spotted Cetus Guard 16623 | -6/Cetus | Spotted Cetus Guard 16627 | -6/Cetus | Destroyed Cetus Guard 16628 | -6/Cetus | Spotted Cetus Guard 16637 | -6/Cetus | Spotted Cetus Guard 16638 | -6/Cetus | Destroyed Cetus Guard 16640 | -6/Cetus | Allies destroyed Cetus Guard 16642 | -6/Cetus | Manufactured an Enhanced Grunt 16643 | -6/Cetus | Allies destroyed Cetus Guard 16653 | -6/Cetus | Discovered new exit (range 16) 16663 | -6/Cetus | Met Revision 17 16667 | -6/Cetus | Manufactured an Enhanced Grunt 16692 | -6/Cetus | Manufactured an Enhanced Grunt 16743 | -6/Cetus | Entered Archives 16743 | -6/Archives | Accompanied by 8 allies (A7) 16748 | -6/Archives | Received a hacking code to weaken MAIN.C 16788 | -6/Archives | System corruption reached 10% 16809 | -6/Archives | Unable to access archive contents 16828 | -6/Archives | Unable to access archive contents 16831 | -6/Archives | Discovered new exit (range 15) 16937 | -6/Archives | Discovered new exit (range 16) 16943 | -6/Archives | Build established: Commander-Skirmisher 17174 | -6/Archives | Discovered new exit (range 15) 17264 | -6/Archives | Entered Hub_04(d) 17264 | -6/Hub_04(d) | Accompanied by 6 allies 17405 | -6/Hub_04(d) | Garrison activated, responded to threat 17414 | -6/Hub_04(d) | Discovered new exit (range 16) 17438 | -6/Hub_04(d) | Network Hub disabled 17445 | -6/Hub_04(d) | Spotted Lightning 17453 | -6/Hub_04(d) | Spotted Lightning 17455 | -6/Hub_04(d) | Spotted Lightning 17460 | -6/Hub_04(d) | Entered Factory 17460 | -5/Factory | Evolved 2 slots: Utility x1, Weapon x1 17487 | -5/Factory | Lost 4 allies 17749 | -5/Factory | Build established: Scavenger-Gunner 18211 | -5/Factory | Fabricated Centrium Heavy Treads (x1) 19065 | -5/Factory | Discovered new exit (range 7) 19237 | -5/Factory | Repaired Broken Weapon Cycler 19261 | -5/Factory | Discovered new exit (range 7) 19560 | -5/Factory | First assault squad dispatched 21828 | -5/Factory | Entered Upper Caves 21830 | -5/Upper Caves | P-70 Sage assimilated allied H4-KY3(r) 22483 | -5/Upper Caves | Learned Factory stockpile data 22598 | -5/Upper Caves | Attracted the attention of an 0b10 checkpoint 22643 | -5/Upper Caves | Discovered new exit (range 11) 22659 | -5/Upper Caves | Entered another Upper Caves area 22788 | -5/Upper Caves | Attracted the attention of an 0b10 checkpoint 22941 | -5/Upper Caves | Spotted B-75 Beast 23277 | -5/Upper Caves | Learned Factory trap positions 23466 | -5/Upper Caves | Destroyed B-75 Beast 23506 | -5/Upper Caves | Discovered new exit (range 8) 23657 | -5/Upper Caves | Entered Zhirov 23657 | -5/Zhirov | Discovered new exit (range 3) 23693 | -5/Zhirov | Met Zhirov 23726 | -5/Zhirov | Learned location of Quarantine (-2) 23726 | -5/Zhirov | Learned location of Testing (-3) 23726 | -5/Zhirov | Learned location of Command (-1) 23757 | -5/Zhirov | Zhirov requested help retrieving the SGEMP Prototype 23787 | -5/Zhirov | Found Alien Artifact 23788 | -5/Zhirov | Identified Integrated Reactor 23788 | -5/Zhirov | Installed Integrated Reactor, increased core energy generation (+10) 23933 | -5/Zhirov | Entered Proximity Caves 23957 | -4/Proximity Caves | Spotted B-86 Titan 24038 | -4/Proximity Caves | Attracted the attention of an 0b10 checkpoint 24168 | -4/Proximity Caves | Destroyed B-86 Titan 24532 | -4/Proximity Caves | Learned Research emergency access door positions 24580 | -4/Proximity Caves | Discovered new exit (range 14) 24601 | -4/Proximity Caves | Entered Factory 24601 | -4/Factory | Evolved 2 slots: Power x1, Utility x1 24602 | -4/Factory | Loaded intel: 116 trap records 25201 | -4/Factory | Discovered new exit (range 4) 26256 | -4/Factory | Repaired Broken Centrium Heavy Treads 26459 | -4/Factory | Repaired Centrium Heavy Treads 26514 | -4/Factory | Repaired Centrium Medium Armor Plating 27351 | -4/Factory | First assault squad dispatched 27550 | -4/Factory | Lost 3 parts (1u2w) 27559 | -4/Factory | Destroyed 10 combat bots 27699 | -4/Factory | Entered Upper Caves 27839 | -4/Upper Caves | Spotted B-86 Titan 28211 | -4/Upper Caves | Lost 3 parts (1p1u1w) 28301 | -4/Upper Caves | Discovered new exit (range 15) 28320 | -4/Upper Caves | Entered another Upper Caves area 28424 | -4/Upper Caves | Destroyed 15 combat bots 28463 | -4/Upper Caves | Learned Extension trap positions 28463 | -4/Upper Caves | Learned Factory terminal intel 28463 | -4/Upper Caves | Learned Armory terminal intel 28509 | -4/Upper Caves | Attracted the attention of an 0b10 base 29360 | -4/Upper Caves | Learned Research emergency access door positions 29376 | -4/Upper Caves | Discovered new exit (range 10) 29391 | -4/Upper Caves | Entered Warlord 29392 | -4/Warlord | Identified exit to Proximity Caves 29656 | -4/Warlord | Visited the Vortex Lab 29661 | -4/Warlord | Warlord's base attacked by MAIN.C 29675 | -4/Warlord | Found Prototype Piercing Weapon 29675 | -4/Warlord | Identified Vortex Lance 29682 | -4/Warlord | Found Prototype Energy Gun 29682 | -4/Warlord | Identified Vortex Rail 29705 | -4/Warlord | Found Vortex Rail 29989 | -4/Warlord | Met Warlord 30011 | -4/Warlord | Warlord forces counterattacked 30079 | -4/Warlord | Lost 3 allies 30192 | -4/Warlord | Lost 3 allies 30310 | -4/Warlord | Spotted Executioner 30317 | -4/Warlord | Destroyed Executioner 30336 | -4/Warlord | Warlord base infiltrated, sounded retreat 30408 | -4/Warlord | Lost 12 allies 30471 | -4/Warlord | Entered Proximity Caves 30502 | -3/Proximity Caves | Lost 5 allies 30616 | -3/Proximity Caves | Spotter reported a threat 30636 | -3/Proximity Caves | Attracted the attention of an 0b10 checkpoint 30691 | -3/Proximity Caves | Spotter reported a threat 30956 | -3/Proximity Caves | Discovered new exit (range 6) 30972 | -3/Proximity Caves | Entered Research 30972 | -3/Research | Evolved 2 slots: Utility x2 31150 | -3/Research | Discovered new exit (range 10) 31172 | -3/Research | Revision forces began assault on 0b10 31340 | -3/Research | Met up with Revision 17++ 31640 | -3/Research | Discovered new exit (range 9) 31672 | -3/Research | Research terminal network offline 32174 | -3/Research | Spotted Executioner 32175 | -3/Research | Spotted Striker 32177 | -3/Research | Destroyed Striker 32201 | -3/Research | Spotted Striker 32652 | -3/Research | Discovered new exit (range 8) 32889 | -3/Research | Found Prototype Processor 32889 | -3/Research | Identified Exp. Core Analyzer 32894 | -3/Research | Found Prototype Processor 32894 | -3/Research | Identified Exp. Targeting Computer 33258 | -3/Research | Lost 4 allies 33340 | -3/Research | Spotted Striker 33346 | -3/Research | Destroyed Striker 33349 | -3/Research | Spotted Striker 33352 | -3/Research | Spotted Striker 33356 | -3/Research | Destroyed Striker 33356 | -3/Research | Destroyed Striker 33381 | -3/Research | Spotted Striker 33390 | -3/Research | Destroyed Striker 33393 | -3/Research | Spotted Striker 33405 | -3/Research | Destroyed Striker 33434 | -3/Research | Destroyed 25 combat bots 33439 | -3/Research | Spotted Striker 33446 | -3/Research | Spotted Striker 33451 | -3/Research | Destroyed Striker 33454 | -3/Research | Destroyed Striker 33500 | -3/Research | Spotted Striker 33502 | -3/Research | Spotted Striker 33510 | -3/Research | Destroyed Striker 33513 | -3/Research | Destroyed Striker 33515 | -3/Research | Lost 10 parts (1p1n2u6w) 33534 | -3/Research | Destroyed 12 combat bots 33774 | -3/Research | Entered another Research area 33774 | -2/Research | Warlord forces began assault on 0b10 33774 | -2/Research | Evolved 2 slots: Propulsion x2 33884 | -2/Research | Research machine network offline 33969 | -2/Research | Found Prototype Device 33969 | -2/Research | Identified Exp. Thermal Defense Suite 33974 | -2/Research | Found Exp. Thermal Defense Suite 34076 | -2/Research | Met up with Warlord 34211 | -2/Research | Discovered new exit (range 16) 34237 | -2/Research | Identified exit to Access 34345 | -2/Research | Found Prototype Launcher 34345 | -2/Research | Identified Adv. Micro-nuke Launcher 34358 | -2/Research | Found Adv. Micro-nuke Launcher 34473 | -2/Research | Destroyed 8 combat bots 34522 | -2/Research | Borebot progress halted 34557 | -2/Research | Borebot progress halted 34585 | -2/Research | Borebot progress halted 34794 | -2/Research | Spotted Striker 34801 | -2/Research | Destroyed Striker 34954 | -2/Research | Warlord invited to help at Command 35041 | -2/Research | Warlord destroyed during the assault 35157 | -2/Research | Entered Access 35157 | -1/Access | Evolved 2 slots: Utility x1, Weapon x1 35445 | -1/Access | Build established: Scavenger-Executioner 35625 | -1/Access | Destroyed 13 combat bots 35740 | -1/Access | Found Prototype Processor 35740 | -1/Access | Identified Exp. Target Analyzer 35744 | -1/Access | Found Exp. Target Analyzer 35937 | -1/Access | First assault squad dispatched 36233 | -1/Access | Spotted B-99 Colossus 36261 | -1/Access | Destroyed B-99 Colossus 36297 | -1/Access | Destroyed 11 combat bots 36526 | -1/Access | Destroyed 10 combat bots 36575 | -1/Access | Destroyed 11 combat bots 36665 | -1/Access | Spotted B-99 Colossus 36917 | -1/Access | Destroyed 9 combat bots 36983 | -1/Access | Garrison activated, responded to threat 37001 | -1/Access | High security lockdown imminent 37030 | -1/Access | Destroyed 12 combat bots 37081 | -1/Access | High security lockdown engaged 37170 | -1/Access | Destroyed 9 combat bots 37261 | -1/Access | Sterilization system engaged 37275 | -1/Access | Destroyed 9 combat bots 37278 | -1/Access | Spotted Investigator 37279 | -1/Access | Scanned by Researcher 37281 | -1/Access | Destroyed Investigator 37323 | -1/Access | Destroyed 9 combat bots 37330 | -1/Access | Spotted Executioner 37330 | -1/Access | Spotted Striker 37330 | -1/Access | Spotted Striker 37330 | -1/Access | Spotted Executioner 37330 | -1/Access | Destroyed Striker 37333 | -1/Access | Destroyed Executioner 37336 | -1/Access | Destroyed Executioner 37338 | -1/Access | Destroyed Striker 37362 | -1/Access | Destroyed 7 combat bots 37366 | -1/Access | Lost 4 parts (1p1n2w) 37467 | -1/Access | Found Launcher Loader 37561 | -1/Access | Ambient heat levels rising (+10) 37711 | -1/Access | Ambient heat levels rising (+10) 37861 | -1/Access | Ambient heat levels rising (+10) 38011 | -1/Access | Ambient heat levels rising (+10) 38161 | -1/Access | Ambient heat levels rising (+10) 38203 | -1/Access | Found Adv. Micro-nuke Launcher 38208 | -1/Access | Found Adv. Micro-nuke Launcher 38311 | -1/Access | Ambient heat levels rising (+10) 38461 | -1/Access | Ambient heat levels rising (+10) 38533 | -1/Access | Energy Cycler disabled 38611 | -1/Access | Ambient heat levels rising (+10) 38761 | -1/Access | Ambient heat levels rising (+10) 38911 | -1/Access | Ambient heat levels rising (+10) 38929 | -1/Access | Destroyed B-99 Colossus 38935 | -1/Access | Spotted B-99 Colossus 38949 | -1/Access | Destroyed B-99 Colossus 39006 | -1/Access | Discovered new exit (range 5) 39012 | -1/Access | Identified exit to Surface 39013 | *** | Escaped! Last Messages --------------- Slug penetrates B-99 Colossus. Vortex penetrates B-99 Colossus. B-99 Colossus heat damages core (-51). Slug penetrates Wall. B-99 Colossus heat damages Hvy. Insulated Plating, Arm. Heavy Treads. B-99 Colossus heat damages Adv. Cooling System. Discarded Machine Analyzer. B-99 Colossus heat damages core (-57). Adv. Cooling System melted. Slug penetrates Reinforced Barrier. Slug penetrates Sealed Heavy Doors. Vortex penetrates Reinforced Barrier. The Access Shell folds into the floor. EXIT=FOUND EXIT=IDENTIFIED: SURFACE [Achievement: 50k Club] [Achievement: Punisher] [Achievement: Rambo] [Achievement: Victory By Combat] Map ----- +----------------------------------------------------+ | ??????????? ????????? ^ | | ??????????? ????????? # | | ??????????? ????????? % # | | ??????????# ???????????? ""Y " # | | ??????????# ???????????????# """" # | | ??????????# ???????????????# # | | ??????????# ???????????????# # | | ??????????# ################ # | | ??????????# # + ######## ##### # | | ??????????# # ##########+##??????#+#####+# | | ??????????# # " #??????? ??????# | | ??????????# #""" #????? ????# | | ??????????# # """ #???# #??# | | ??????????# # " #???# #??# "" | | ??????????+ + #???# #??# "" | | ??????????# # #???# """ """ #??# "" " | | ??????????# # #???# """S""" #??# """" | | ??????????# ##########???#############??# "" | | ??????????# #?????##????????????????????# " | | ??????????# ####### ##########?########## | | ??????????# """T""" "?" # | | ??????????# """ """ "?" % # | | ??????????# """ ###+###"# | | ??????????# " | | ??????????# "" | | ??????????# @" | | ??????????# | | ??????????# """ % """"##### | | ??????????# " # | | ??????????# """" # | | ??????????# %####### ##########??######### | | ??????????# %#?????##????????????????????# | | ??????????#%!#???????????????????????????# | | ??????????#[!#???????????????????????????# | | ??????????#! #???????????????????????????# " | | ??????????# #???????????????????????????# " | | ??????????# #???????????????????????????# " | | ??????????# #???????????????????????????# " " | | ??????????# #???????????????????????????# " | | ??????????# #???????????????????????????# "" | | ??????????# #???????????????????????????# "" | | ??????????# #???????????????????????????# "" | | ########### #???????????????????????????# | | # ####### #????????????????# | | + #????????????????# | | # ! #????????????????# | | #% #????????????????######### | | ?#= +###????????????????????????? | | ?# #??????????????????????????? | | ########??# #????????????????????? ?" | +----------------------------------------------------+ Best States ------------- Heat Dissipation 166 Energy Generation 55 Energy Capacity 600 Matter Stores 300 Matter Capacity 300 Sight Range 16 Terrain Scan Density 10 Armor Coverage 600 Resistance: TH 30 Weapon Shielding 90 Weapon Cycling 30 Melee Speed Boost 20 Phase Shifting 10 Evasion (%) 50 Targeting Accuracy 12 Target Analysis 10 Core Analysis 11 Recoil Reduction 6 Kinecelleration 40 Item Schematics ----------------- Huge Storage Unit | -9/Materials | Scanalyzed Lrn. Tractor Beam | -9/Materials | Scanalyzed Arm. Wheel | -9/Materials | Scanalyzed Hrd. Medium Armor Plating | -9/Materials | Scanalyzed Mni. Grenade Launcher | -9/Materials | Scanalyzed Enh. Autogun | -8/Materials | Scanalyzed Cld. Ion Engine | -8/Materials | Scanalyzed Adv. KE Penetrator | -5/Factory | Scanalyzed Centrium Heavy Treads | -5/Factory | Scanalyzed Assault Drone Bay | -5/Zhirov | Free Exp. Heat Sink | -5/Zhirov | Free Exp. Optical Array | -5/Zhirov | Free Imp. Arc Thrower | -5/Zhirov | Free Robot Schematics ------------------ None Fabricated ------------ Centrium Heavy Treads | x1 | -5/Factory Alien Tech Used ----------------- Integrated Reactor Achievements -------------- 50k Club A Powerful Ally? All-out Warlord Charge!!! Giant Slayer Killing Spree Main Advantage Ooh, Shiny! Preemptive Strike Prison Break Project G-00 Punisher Rambo Revising The Future Revolutionary Research Rockin' Loadout Victory By Combat Challenges ------------ None Game ------ Seed DeepRefineryPod Manual? 0 Play Time 05:42:24 Cumulative 42.9 hours Start 2024.04.14 @ 19:58:14 End 2024.04.15 @ 13:09:12 Sessions 3 Manual Loads 0 Difficulty Rogue Special Mode None Game No. 34 Rogue 34 Adventurer 0 Explorer 0 Win Type 0 Total 2 Types 2/0/0/0/0/0/0/0/0 Lore% 34 Gallery% 35 Achievement% 39 Wizard Run 0 Options --------- Layout 1 ASCII 0 Keyboard 0 Movement Arrows Keybinds 0 Fullscreen 1 Font 24/Smallcaps Map View 50x35 Zoom Use 0% Tactical HUD 0 Map Filters NONE Filters NONE Steam 1 RUN: cafbe406-8d1b-4b16-a9b9-01ffb96fc77f